[Event "*** Titled Tuesday Blitz"]
[Site "Chess.com"]
[Date "2018.04.03"]
[Round "1"]
[White "vovachesss"]
[Black "chesstatour"]
[Result "0-1"]
[WhiteElo "2424"]
[BlackElo "1977"]
[TimeControl "180+2"]
[EndTime "13:09:36 PDT"]
[Termination "chesstatour won by resignation"]

1. e4 {[%clk 0:02:45.3]} 1... c6 {[%clk 0:03:00.2]} 2. d4 {[%clk 0:02:41.9]}
2... d5 {[%clk 0:03:02.1]} 3. e5 {[%clk 0:02:43]} 3... c5 {[%clk 0:03:02.7]} 4.
dxc5 {[%clk 0:02:40.7]} 4... Nc6 {[%clk 0:03:03.3]} 5. Nf3 {[%clk 0:02:40.7]}
5... Bg4 {[%clk 0:03:04]} 6. Nc3 {[%clk 0:02:39.9]} 6... e6 {[%clk 0:03:03.5]}
7. Bb5 {[%clk 0:02:40.8]} 7... Bxc5 {[%clk 0:03:03.8]} 8. O-O {[%clk 0:02:41]}
8... Ne7 {[%clk 0:03:04.8]} 9. h3 {[%clk 0:02:41.3]} 9... Bh5 {[%clk 0:02:56.9]}
10. a3 {[%clk 0:02:33]} 10... O-O {[%clk 0:02:45.3]} 11. b4 {[%clk 0:02:32.3]}
11... Bb6 {[%clk 0:02:46.1]} 12. Bb2 {[%clk 0:02:33.1]} 12... Nxe5 {[%clk
0:02:37.2]} 13. g4 {[%clk 0:02:26.2]} 13... Nxf3+ {[%clk 0:02:36.5]} 14. Qxf3
{[%clk 0:02:28.1]} 14... Bg6 {[%clk 0:02:36.7]} 15. Ne2 {[%clk 0:02:15.4]} 15...
Rc8 {[%clk 0:02:29.1]} 16. Rac1 {[%clk 0:02:06.8]} 16... Bxc2 {[%clk 0:02:08]}
17. Nf4 {[%clk 0:02:05.2]} 17... Be4 {[%clk 0:02:04.8]} 18. Qg3 {[%clk
0:01:57.9]} 18... Qd6 {[%clk 0:02:00.6]} 19. Rfe1 {[%clk 0:01:18.5]} 19... Ng6
{[%clk 0:01:49.1]} 20. Nh5 {[%clk 0:00:54.3]} 20... Qxg3+ {[%clk 0:01:36.6]} 21.
Nxg3 {[%clk 0:00:56.2]} 21... Bf3 {[%clk 0:01:17.5]} 22. Nh5 {[%clk 0:00:53.3]}
22... d4 {[%clk 0:00:39.3]} 23. Ng3 {[%clk 0:00:26]} 23... Rfd8 {[%clk
0:00:31.7]} 24. Bd3 {[%clk 0:00:19.6]} 24... Nf4 {[%clk 0:00:30.8]} 25. Be4
{[%clk 0:00:20.9]} 25... Rxc1 {[%clk 0:00:20.1]} 26. Bxc1 {[%clk 0:00:20.7]}
26... Nxh3+ {[%clk 0:00:14.9]} 27. Kh2 {[%clk 0:00:21.5]} 27... Bxe4 {[%clk
0:00:11.3]} 28. Rxe4 {[%clk 0:00:12.2]} 28... Nxf2 {[%clk 0:00:09.1]} 29. Re2
{[%clk 0:00:13.7]} 29... Nd3 {[%clk 0:00:09.7]} 30. Bg5 {[%clk 0:00:15]} 30...
f6 {[%clk 0:00:10.3]} 31. Bh4 {[%clk 0:00:16]} 31... e5 {[%clk 0:00:09.9]} 32.
g5 {[%clk 0:00:16.9]} 32... Nf4 {[%clk 0:00:10.5]} 33. Re1 {[%clk 0:00:16]}
33... Ng6 {[%clk 0:00:11]} 34. Kh3 {[%clk 0:00:14]} 34... Nxh4 {[%clk 0:00:11]}
35. Kxh4 {[%clk 0:00:15.8]} 35... d3 {[%clk 0:00:12.3]} 36. gxf6 {[%clk
0:00:15.9]} 36... gxf6 {[%clk 0:00:12.7]} 37. Nf5 {[%clk 0:00:16.5]} 37... d2
{[%clk 0:00:11.5]} 38. Rd1 {[%clk 0:00:17.7]} 38... e4 {[%clk 0:00:12.5]} 39.
Kg4 {[%clk 0:00:18.3]} 39... e3 {[%clk 0:00:09.7]} 40. Kf3 {[%clk 0:00:18.7]}
40... Re8 {[%clk 0:00:09.2]} 41. Ng3 {[%clk 0:00:18.1]} 41... Kf7 {[%clk
0:00:07.8]} 42. Ne2 {[%clk 0:00:19.3]} 42... f5 {[%clk 0:00:07.5]} 43. Rh1
{[%clk 0:00:20.5]} 43... Kg7 {[%clk 0:00:06.2]} 44. Nf4 {[%clk 0:00:21.2]} 44...
Bc7 {[%clk 0:00:03.4]} 45. Nd5 {[%clk 0:00:20.8]} 45... Bb6 {[%clk 0:00:03.1]}
46. Rg1+ {[%clk 0:00:21.3]} 46... Kf7 {[%clk 0:00:03.8]} 47. Rh1 {[%clk
0:00:21]} 47... e2 {[%clk 0:00:04.3]} 48. Rxh7+ {[%clk 0:00:20.5]} 48... Ke6
{[%clk 0:00:05]} 49. Nf4+ {[%clk 0:00:21.6]} 49... Kf6 {[%clk 0:00:06.1]} 50.
Rh6+ {[%clk 0:00:22]} 50... Kg7 {[%clk 0:00:06.3]} 51. Rg6+ {[%clk 0:00:22.7]}
51... Kf7 {[%clk 0:00:07.5]} 52. Rd6 {[%clk 0:00:19]} 52... e1=Q {[%clk
0:00:07.2]} 53. Rd7+ {[%clk 0:00:18.7]} 53... Re7 {[%clk 0:00:07.6]} 54. Rd5
{[%clk 0:00:20]} 54... d1=Q+ {[%clk 0:00:07.3]} 55. Kg2 {[%clk 0:00:18.6]} 55...
Qxd5+ {[%clk 0:00:06.9]} 0-1

[Event "*** Titled Tuesday Blitz"]
[Site "Chess.com"]
[Date "2018.04.03"]
[Round "1"]
[White "popov_m"]
[Black "TomPolgar"]
[Result "1-0"]
[WhiteElo "2457"]
[BlackElo "1943"]
[TimeControl "180+2"]
[EndTime "13:09:37 PDT"]
[Termination "popov_m won by resignation"]

1. d4 {[%clk 0:03:01.9]} 1... Nf6 {[%clk 0:03:00.2]} 2. Nf3 {[%clk 0:02:55.1]}
2... g6 {[%clk 0:02:59.7]} 3. g3 {[%clk 0:02:56.1]} 3... Bg7 {[%clk 0:03:00.8]}
4. Bg2 {[%clk 0:02:57.1]} 4... O-O {[%clk 0:03:00.7]} 5. O-O {[%clk 0:02:58.8]}
5... d6 {[%clk 0:03:02]} 6. b3 {[%clk 0:02:59.6]} 6... c5 {[%clk 0:02:55.6]} 7.
c4 {[%clk 0:02:59.5]} 7... Nbd7 {[%clk 0:02:36.7]} 8. Bb2 {[%clk 0:02:58.8]}
8... a6 {[%clk 0:02:31.3]} 9. Nc3 {[%clk 0:02:55.3]} 9... Rb8 {[%clk 0:02:32]}
10. a4 {[%clk 0:02:33.5]} 10... b6 {[%clk 0:02:28.4]} 11. Qd2 {[%clk 0:02:31.5]}
11... Bb7 {[%clk 0:02:28.8]} 12. d5 {[%clk 0:02:32.5]} 12... Qc7 {[%clk
0:02:02]} 13. Rad1 {[%clk 0:02:25.1]} 13... Rbd8 {[%clk 0:02:01.8]} 14. e4
{[%clk 0:02:24]} 14... Rfe8 {[%clk 0:01:55.3]} 15. Rfe1 {[%clk 0:02:22.4]} 15...
Nf8 {[%clk 0:01:50.1]} 16. Qc1 {[%clk 0:01:39.4]} 16... e5 {[%clk 0:01:44.9]}
17. dxe6 {[%clk 0:01:34.9]} 17... fxe6 {[%clk 0:01:39.2]} 18. h3 {[%clk
0:01:17.1]} 18... h6 {[%clk 0:00:47.5]} 19. Rd2 {[%clk 0:01:15.2]} 19... Re7
{[%clk 0:00:37.1]} 20. Qd1 {[%clk 0:01:08.9]} 20... Ne8 {[%clk 0:00:34.6]} 21.
h4 {[%clk 0:00:58.6]} 21... Rf7 {[%clk 0:00:31.3]} 22. Rd3 {[%clk 0:00:54.7]}
22... e5 {[%clk 0:00:30.3]} 23. Nd5 {[%clk 0:00:54.1]} 23... Bxd5 {[%clk
0:00:28.8]} 24. Rxd5 {[%clk 0:00:47.8]} 24... Ne6 {[%clk 0:00:29]} 25. Bh3
{[%clk 0:00:45.3]} 25... Nd4 {[%clk 0:00:28.7]} 26. Nxd4 {[%clk 0:00:46.2]}
26... cxd4 {[%clk 0:00:24.1]} 27. Be6 {[%clk 0:00:47.2]} 27... Nf6 {[%clk
0:00:25.2]} 28. Qd3 {[%clk 0:00:24.1]} 28... Nxd5 {[%clk 0:00:25.7]} 29. exd5
{[%clk 0:00:24.9]} 29... Kh7 {[%clk 0:00:25.1]} 30. Bxf7 {[%clk 0:00:25.4]}
30... Qxf7 {[%clk 0:00:27]} 31. Kg2 {[%clk 0:00:24.6]} 31... Rf8 {[%clk
0:00:27.7]} 32. Rf1 {[%clk 0:00:20.8]} 32... Qf5 {[%clk 0:00:28.4]} 33. Qxf5
{[%clk 0:00:21.5]} 33... gxf5 {[%clk 0:00:28.5]} 34. Rd1 {[%clk 0:00:21.2]}
34... Bf6 {[%clk 0:00:26.9]} 35. f4 {[%clk 0:00:20.4]} 35... Rg8 {[%clk
0:00:24.9]} 36. fxe5 {[%clk 0:00:21.3]} 36... dxe5 {[%clk 0:00:25.7]} 37. Kf2
{[%clk 0:00:21.9]} 37... Rg4 {[%clk 0:00:24.5]} 38. b4 {[%clk 0:00:21.9]} 38...
Be7 {[%clk 0:00:24.5]} 39. Rc1 {[%clk 0:00:22.3]} 39... Bxb4 {[%clk 0:00:19.8]}
40. a5 {[%clk 0:00:18.9]} 40... Bc5 {[%clk 0:00:16.6]} 41. axb6 {[%clk
0:00:19.4]} 41... d3+ {[%clk 0:00:17.2]} 42. Kg2 {[%clk 0:00:18.1]} 42... d2
{[%clk 0:00:16.9]} 43. Rd1 {[%clk 0:00:19.4]} 43... Bxb6 {[%clk 0:00:18]} 44.
Rxd2 {[%clk 0:00:18.7]} 44... Rxc4 {[%clk 0:00:19.5]} 45. Bxe5 {[%clk
0:00:19.8]} 45... Bd8 {[%clk 0:00:19]} 46. h5 {[%clk 0:00:16.2]} 46... Kg8
{[%clk 0:00:18.6]} 47. Rb2 {[%clk 0:00:15.9]} 47... a5 {[%clk 0:00:18.6]} 48.
Rb8 {[%clk 0:00:16.6]} 48... Re4 {[%clk 0:00:17.1]} 49. Rxd8+ {[%clk 0:00:17.2]}
49... Kf7 {[%clk 0:00:18.7]} 50. Bf4 {[%clk 0:00:18.8]} 50... Kg7 {[%clk
0:00:18.5]} 51. d6 {[%clk 0:00:20.2]} 51... a4 {[%clk 0:00:19.3]} 52. Ra8 {[%clk
0:00:21.4]} 52... a3 {[%clk 0:00:20.2]} 53. Rxa3 {[%clk 0:00:21.4]} 53... Rd4
{[%clk 0:00:21.8]} 54. Kf3 {[%clk 0:00:21.8]} 54... Kf6 {[%clk 0:00:23.3]} 55.
Ke3 {[%clk 0:00:23.2]} 55... Rd1 {[%clk 0:00:24.4]} 56. Rd3 {[%clk 0:00:24.8]}
56... Re1+ {[%clk 0:00:24.8]} 57. Kf2 {[%clk 0:00:26.2]} 57... Ra1 {[%clk
0:00:25.7]} 58. d7 {[%clk 0:00:27.4]} 58... Ra2+ {[%clk 0:00:26.7]} 59. Kf3
{[%clk 0:00:29]} 59... Ke6 {[%clk 0:00:26.3]} 60. d8=Q {[%clk 0:00:29.5]} 1-0

[Event "*** Titled Tuesday Blitz"]
[Site "Chess.com"]
[Date "2018.04.03"]
[Round "1"]
[White "KNVB"]
[Black "toad"]
[Result "1-0"]
[WhiteElo "2562"]
[BlackElo "2220"]
[TimeControl "180+2"]
[EndTime "13:09:48 PDT"]
[Termination "KNVB won by checkmate"]

1. d4 {[%clk 0:03:01.9]} 1... Nf6 {[%clk 0:03:00.4]} 2. c4 {[%clk 0:03:02.4]}
2... g6 {[%clk 0:03:01.4]} 3. Nc3 {[%clk 0:03:01.4]} 3... d5 {[%clk 0:03:02.4]}
4. cxd5 {[%clk 0:03:01.8]} 4... Nxd5 {[%clk 0:03:04.3]} 5. e4 {[%clk 0:02:58.1]}
5... Nxc3 {[%clk 0:03:05.3]} 6. bxc3 {[%clk 0:03:00]} 6... Bg7 {[%clk
0:03:06.5]} 7. Be3 {[%clk 0:03:01]} 7... c5 {[%clk 0:03:06.7]} 8. Qd2 {[%clk
0:02:53.1]} 8... Qa5 {[%clk 0:03:03]} 9. Rc1 {[%clk 0:02:51.4]} 9... cxd4 {[%clk
0:03:03.6]} 10. cxd4 {[%clk 0:02:53.3]} 10... Qxd2+ {[%clk 0:03:04.1]} 11. Kxd2
{[%clk 0:02:54.6]} 11... Nc6 {[%clk 0:03:03.1]} 12. Nf3 {[%clk 0:02:20.9]} 12...
O-O {[%clk 0:03:02.5]} 13. Bb5 {[%clk 0:02:21.2]} 13... Rd8 {[%clk 0:02:51.1]}
14. Bxc6 {[%clk 0:02:19.6]} 14... bxc6 {[%clk 0:02:52.4]} 15. Rc5 {[%clk
0:02:21.2]} 15... Bg4 {[%clk 0:02:39]} 16. Ne5 {[%clk 0:02:18]} 16... Bxe5
{[%clk 0:02:36.8]} 17. Rxe5 {[%clk 0:02:19.9]} 17... Be6 {[%clk 0:02:31.1]} 18.
Ra5 {[%clk 0:02:00.5]} 18... Rab8 {[%clk 0:02:03.9]} 19. Rc1 {[%clk 0:01:59.4]}
19... Rb2+ {[%clk 0:02:03.5]} 20. Rc2 {[%clk 0:02:00.4]} 20... Rxc2+ {[%clk
0:01:21.9]} 21. Kxc2 {[%clk 0:02:02.3]} 21... f5 {[%clk 0:01:23.2]} 22. f3
{[%clk 0:01:39]} 22... fxe4 {[%clk 0:01:23.9]} 23. fxe4 {[%clk 0:01:40.9]} 23...
Rd7 {[%clk 0:01:21.4]} 24. Ra6 {[%clk 0:01:22.8]} 24... Bc4 {[%clk 0:01:01.8]}
25. Ra4 {[%clk 0:01:13.1]} 25... Bb5 {[%clk 0:01:02.6]} 26. Ra5 {[%clk
0:01:11.2]} 26... Kf7 {[%clk 0:00:34.6]} 27. d5 {[%clk 0:00:46.6]} 27... Bf1
{[%clk 0:00:21.3]} 28. dxc6 {[%clk 0:00:35.3]} 28... Rc7 {[%clk 0:00:22.2]} 29.
Rc5 {[%clk 0:00:32.3]} 29... Bxg2 {[%clk 0:00:22.8]} 30. Kd3 {[%clk 0:00:33.6]}
30... Ke6 {[%clk 0:00:13]} 31. Bf4 {[%clk 0:00:33.1]} 31... Rc8 {[%clk
0:00:13.6]} 32. c7 {[%clk 0:00:31.4]} 32... Bh3 {[%clk 0:00:13.3]} 33. Ra5
{[%clk 0:00:30.9]} 33... g5 {[%clk 0:00:12.7]} 34. Rxg5 {[%clk 0:00:30.3]} 34...
Bf1+ {[%clk 0:00:12]} 35. Ke3 {[%clk 0:00:30.5]} 35... Bc4 {[%clk 0:00:12.7]}
36. a3 {[%clk 0:00:25.6]} 36... Kd7 {[%clk 0:00:11.3]} 37. Rc5 {[%clk
0:00:20.7]} 37... Ba6 {[%clk 0:00:11.6]} 38. Ra5 {[%clk 0:00:21]} 38... Bf1
{[%clk 0:00:07]} 39. Rxa7 {[%clk 0:00:21.5]} 39... Rg8 {[%clk 0:00:05.5]} 40.
Rb7 {[%clk 0:00:18.6]} 40... Ba6 {[%clk 0:00:02.3]} 41. Rb8 {[%clk 0:00:19]}
41... Bc8 {[%clk 0:00:03.5]} 42. Bg3 {[%clk 0:00:19.6]} 42... Rg6 {[%clk
0:00:04.3]} 43. Rb3 {[%clk 0:00:18.3]} 43... Ra6 {[%clk 0:00:04.7]} 44. Rd3+
{[%clk 0:00:19]} 44... Ke6 {[%clk 0:00:04.9]} 45. Kf4 {[%clk 0:00:14.1]} 45...
Ra8 {[%clk 0:00:05.6]} 46. Rd8 {[%clk 0:00:13.5]} 46... Kf7 {[%clk 0:00:05.8]}
47. a4 {[%clk 0:00:10.6]} 47... e6 {[%clk 0:00:07.1]} 48. a5 {[%clk 0:00:09.8]}
48... Ke7 {[%clk 0:00:07]} 49. a6 {[%clk 0:00:10.5]} 49... Kf7 {[%clk
0:00:08.1]} 50. a7 {[%clk 0:00:11.7]} 50... Ke7 {[%clk 0:00:08.2]} 51. Ke5
{[%clk 0:00:12.3]} 51... Kf7 {[%clk 0:00:09]} 52. Kd6 {[%clk 0:00:13.6]} 52...
Kf6 {[%clk 0:00:09.2]} 53. Rxc8 {[%clk 0:00:11.6]} 53... Rxc8 {[%clk 0:00:10.1]}
54. Kd7 {[%clk 0:00:12.4]} 54... Ra8 {[%clk 0:00:10.6]} 55. Bf2 {[%clk
0:00:13.2]} 55... h5 {[%clk 0:00:10.4]} 56. c8=Q {[%clk 0:00:14.5]} 56... Rxc8
{[%clk 0:00:11.2]} 57. Kxc8 {[%clk 0:00:16.4]} 57... h4 {[%clk 0:00:12.7]} 58.
Bxh4+ {[%clk 0:00:16.8]} 58... Ke5 {[%clk 0:00:13.4]} 59. a8=Q {[%clk
0:00:16.7]} 59... Kf4 {[%clk 0:00:15.3]} 60. Qc6 {[%clk 0:00:17]} 60... e5
{[%clk 0:00:17.2]} 61. Qf6+ {[%clk 0:00:17.7]} 61... Ke3 {[%clk 0:00:19.1]} 62.
Qxe5 {[%clk 0:00:18.7]} 62... Ke2 {[%clk 0:00:21]} 63. Qg3 {[%clk 0:00:18.3]}
63... Kf1 {[%clk 0:00:22.3]} 64. Qf2# {[%clk 0:00:19.2]} 1-0

[Event "*** Titled Tuesday Blitz"]
[Site "Chess.com"]
[Date "2018.04.03"]
[Round "1"]
[White "wonderfultime"]
[Black "PulpanJ"]
[Result "0-1"]
[WhiteElo "2753"]
[BlackElo "2416"]
[TimeControl "180+2"]
[EndTime "13:10:13 PDT"]
[Termination "PulpanJ won on time"]

1. d4 {[%clk 0:02:58.8]} 1... Nf6 {[%clk 0:02:58.8]} 2. Nf3 {[%clk 0:02:59.2]}
2... e6 {[%clk 0:02:54.8]} 3. Bf4 {[%clk 0:02:59.8]} 3... b6 {[%clk 0:02:49.6]}
4. Nbd2 {[%clk 0:02:59.1]} 4... Bb7 {[%clk 0:02:48]} 5. e3 {[%clk 0:03:00.1]}
5... c5 {[%clk 0:02:43.6]} 6. c3 {[%clk 0:02:59.8]} 6... Be7 {[%clk 0:02:35.8]}
7. h3 {[%clk 0:02:58]} 7... O-O {[%clk 0:02:36]} 8. Bd3 {[%clk 0:02:58.9]} 8...
Nc6 {[%clk 0:02:34.9]} 9. O-O {[%clk 0:02:59.5]} 9... d5 {[%clk 0:02:28.6]} 10.
a3 {[%clk 0:02:58.8]} 10... Rc8 {[%clk 0:02:23.8]} 11. b4 {[%clk 0:02:55.6]}
11... cxd4 {[%clk 0:02:20.5]} 12. cxd4 {[%clk 0:02:57.5]} 12... Bd6 {[%clk
0:02:21.7]} 13. Ne5 {[%clk 0:02:49]} 13... Bxe5 {[%clk 0:02:12.3]} 14. dxe5
{[%clk 0:02:44.7]} 14... Nd7 {[%clk 0:02:13.7]} 15. Nf3 {[%clk 0:02:45.7]} 15...
h6 {[%clk 0:02:08.5]} 16. Rc1 {[%clk 0:02:42.5]} 16... Qe7 {[%clk 0:02:02.3]}
17. Bb1 {[%clk 0:02:26.9]} 17... Rfd8 {[%clk 0:01:55.4]} 18. Qd3 {[%clk
0:02:25.4]} 18... Nf8 {[%clk 0:01:56]} 19. Rfd1 {[%clk 0:02:24.2]} 19... a5
{[%clk 0:01:51.8]} 20. b5 {[%clk 0:02:17.1]} 20... Nb8 {[%clk 0:01:52.8]} 21.
Nd4 {[%clk 0:02:03.8]} 21... Rc5 {[%clk 0:01:53.6]} 22. Nb3 {[%clk 0:02:03.7]}
22... Rxc1 {[%clk 0:01:48.9]} 23. Rxc1 {[%clk 0:02:05.6]} 23... Qxa3 {[%clk
0:01:45.8]} 24. Rc3 {[%clk 0:01:55.5]} 24... Rc8 {[%clk 0:01:23.8]} 25. Rxc8
{[%clk 0:01:20.8]} 25... Bxc8 {[%clk 0:01:24.3]} 26. Qc2 {[%clk 0:01:20.2]}
26... Bb7 {[%clk 0:01:11.3]} 27. Nd4 {[%clk 0:01:18.9]} 27... Qe7 {[%clk
0:00:58.3]} 28. Bg3 {[%clk 0:01:11.8]} 28... Qd7 {[%clk 0:00:43.4]} 29. h4
{[%clk 0:01:05.6]} 29... Qc8 {[%clk 0:00:40.3]} 30. Qd1 {[%clk 0:01:01.1]} 30...
Nbd7 {[%clk 0:00:38.6]} 31. h5 {[%clk 0:01:01.3]} 31... Nc5 {[%clk 0:00:37.4]}
32. f3 {[%clk 0:00:49.3]} 32... a4 {[%clk 0:00:34.4]} 33. Qc2 {[%clk 0:00:37.6]}
33... a3 {[%clk 0:00:34.2]} 34. Be1 {[%clk 0:00:36.4]} 34... Qa8 {[%clk
0:00:28.9]} 35. Bb4 {[%clk 0:00:35.6]} 35... Ncd7 {[%clk 0:00:30.2]} 36. f4
{[%clk 0:00:31.2]} 36... Nc5 {[%clk 0:00:31]} 37. Qa2 {[%clk 0:00:27.4]} 37...
Qa4 {[%clk 0:00:29.7]} 38. Bxa3 {[%clk 0:00:10.4]} 38... Qd1+ {[%clk 0:00:30.4]}
39. Kf2 {[%clk 0:00:11.9]} 39... Qxh5 {[%clk 0:00:31.5]} 40. Bb4 {[%clk
0:00:09.3]} 40... Qh4+ {[%clk 0:00:30.8]} 41. Kf1 {[%clk 0:00:10.7]} 41... Qh1+
{[%clk 0:00:31]} 42. Kf2 {[%clk 0:00:12.2]} 42... Qc1 {[%clk 0:00:30.7]} 43. Bc2
{[%clk 0:00:10.5]} 43... g6 {[%clk 0:00:28.7]} 44. Qa7 {[%clk 0:00:11.3]} 44...
Nfd7 {[%clk 0:00:26.5]} 45. Qa2 {[%clk 0:00:11.1]} 45... Kg7 {[%clk 0:00:27.2]}
46. Qa3 {[%clk 0:00:11.2]} 46... Qh1 {[%clk 0:00:25.8]} 47. Qc3 {[%clk
0:00:10.9]} 47... h5 {[%clk 0:00:26.5]} 48. Nf3 {[%clk 0:00:09.6]} 48... h4
{[%clk 0:00:23.7]} 49. Ng5 {[%clk 0:00:09.9]} 49... d4 {[%clk 0:00:23.2]} 50.
exd4 {[%clk 0:00:08.5]} 50... Qxg2+ {[%clk 0:00:24.1]} 51. Ke1 {[%clk 0:00:10]}
51... Ne4 {[%clk 0:00:21.5]} 52. Bxe4 {[%clk 0:00:10.3]} 52... Bxe4 {[%clk
0:00:23.1]} 53. Be7 {[%clk 0:00:05.8]} 53... Qc2 {[%clk 0:00:14.7]} 0-1

[Event "*** Titled Tuesday Blitz"]
[Site "Chess.com"]
[Date "2018.04.03"]
[Round "1"]
[White "Hrant_ChessMood"]
[Black "TheLancer"]
[Result "1-0"]
[WhiteElo "2930"]
[BlackElo "2423"]
[TimeControl "180+2"]
[EndTime "13:10:18 PDT"]
[Termination "Hrant_ChessMood won by resignation"]

1. d4 {[%clk 0:03:01.9]} 1... Nf6 {[%clk 0:02:56.8]} 2. Nf3 {[%clk 0:03:02.7]}
2... e6 {[%clk 0:02:57.1]} 3. g3 {[%clk 0:03:02]} 3... Be7 {[%clk 0:02:38.8]} 4.
Bg2 {[%clk 0:02:52.5]} 4... O-O {[%clk 0:02:39.5]} 5. O-O {[%clk 0:02:53.8]}
5... d5 {[%clk 0:02:24.4]} 6. b3 {[%clk 0:02:54.1]} 6... b6 {[%clk 0:02:18.7]}
7. Bb2 {[%clk 0:02:54.2]} 7... Bb7 {[%clk 0:02:19.3]} 8. Ne5 {[%clk 0:02:51.2]}
8... c5 {[%clk 0:02:11.8]} 9. c4 {[%clk 0:02:47.5]} 9... cxd4 {[%clk 0:01:55.4]}
10. Bxd4 {[%clk 0:02:43.1]} 10... Nc6 {[%clk 0:01:47.4]} 11. Nxc6 {[%clk
0:02:18.8]} 11... Bxc6 {[%clk 0:01:48.2]} 12. Nd2 {[%clk 0:02:20.1]} 12... Rc8
{[%clk 0:01:43.1]} 13. Rc1 {[%clk 0:02:08.5]} 13... dxc4 {[%clk 0:01:39.1]} 14.
Nxc4 {[%clk 0:02:08]} 14... Bxg2 {[%clk 0:01:35.5]} 15. Kxg2 {[%clk 0:02:09.9]}
15... Qd5+ {[%clk 0:01:33.6]} 16. f3 {[%clk 0:02:10]} 16... Rfd8 {[%clk
0:01:24.6]} 17. Bxf6 {[%clk 0:02:00.1]} 17... Bxf6 {[%clk 0:01:15.5]} 18. Qxd5
{[%clk 0:01:59.6]} 18... Rxd5 {[%clk 0:01:11.5]} 19. Ne3 {[%clk 0:01:50.4]}
19... Rdc5 {[%clk 0:01:00.4]} 20. Rxc5 {[%clk 0:01:49.3]} 20... Rxc5 {[%clk
0:01:02.3]} 21. Rd1 {[%clk 0:01:46.9]} 21... Rc3 {[%clk 0:00:48.6]} 22. Kf2
{[%clk 0:01:37.4]} 22... h5 {[%clk 0:00:45]} 23. Rd7 {[%clk 0:01:28]} 23... a5
{[%clk 0:00:36.2]} 24. Nc4 {[%clk 0:01:17.8]} 24... a4 {[%clk 0:00:32]} 25. Rd3
{[%clk 0:00:52.4]} 25... Rxd3 {[%clk 0:00:16.8]} 26. exd3 {[%clk 0:00:54.3]}
26... axb3 {[%clk 0:00:18.3]} 27. axb3 {[%clk 0:00:55]} 27... Bd4+ {[%clk
0:00:19.8]} 28. Ke2 {[%clk 0:00:56]} 28... g6 {[%clk 0:00:19.4]} 29. f4 {[%clk
0:00:46.9]} 29... Kf8 {[%clk 0:00:18.4]} 30. Kf3 {[%clk 0:00:47.7]} 30... f5
{[%clk 0:00:17.9]} 31. h3 {[%clk 0:00:42.8]} 31... Ke7 {[%clk 0:00:18.4]} 32. g4
{[%clk 0:00:44.3]} 32... hxg4+ {[%clk 0:00:18.4]} 33. hxg4 {[%clk 0:00:46.2]}
33... Kd7 {[%clk 0:00:19.9]} 34. Na3 {[%clk 0:00:38.8]} 34... Kc6 {[%clk
0:00:19.7]} 35. Nc2 {[%clk 0:00:40.4]} 35... Kd5 {[%clk 0:00:20.3]} 36. gxf5
{[%clk 0:00:39.1]} 36... gxf5 {[%clk 0:00:20.5]} 37. Ke2 {[%clk 0:00:40.4]}
37... b5 {[%clk 0:00:21.1]} 38. Nb4+ {[%clk 0:00:40.2]} 38... Kc5 {[%clk
0:00:21.5]} 39. Nc2 {[%clk 0:00:42.1]} 39... Kd5 {[%clk 0:00:22.9]} 40. Kf3
{[%clk 0:00:42.7]} 40... Kc5 {[%clk 0:00:22.4]} 41. Kg3 {[%clk 0:00:37.7]} 41...
Bf6 {[%clk 0:00:22.2]} 42. Kg2 {[%clk 0:00:34.9]} 42... Kd5 {[%clk 0:00:23.1]}
43. Kf1 {[%clk 0:00:33.4]} 43... Kc5 {[%clk 0:00:23.7]} 44. Ke2 {[%clk
0:00:34.3]} 44... Bc3 {[%clk 0:00:24.4]} 45. Ke3 {[%clk 0:00:34]} 45... Bf6
{[%clk 0:00:23]} 46. d4+ {[%clk 0:00:35]} 46... Kd5 {[%clk 0:00:22.4]} 47. Kd3
{[%clk 0:00:36.4]} 47... Be7 {[%clk 0:00:22.8]} 48. Ne3+ {[%clk 0:00:37.4]}
48... Kc6 {[%clk 0:00:24.2]} 49. d5+ {[%clk 0:00:38.2]} 49... exd5 {[%clk
0:00:25.4]} 50. Nxf5 {[%clk 0:00:38.7]} 50... Bf6 {[%clk 0:00:26.6]} 51. Ne3
{[%clk 0:00:26.1]} 51... Kc5 {[%clk 0:00:26.9]} 52. Nc2 {[%clk 0:00:26.8]} 52...
d4 {[%clk 0:00:25.4]} 53. Ke4 {[%clk 0:00:27.1]} 53... b4 {[%clk 0:00:25.1]} 54.
Ne1 {[%clk 0:00:27]} 54... Be7 {[%clk 0:00:23.3]} 55. Nd3+ {[%clk 0:00:27.4]}
55... Kc6 {[%clk 0:00:23]} 56. Kxd4 {[%clk 0:00:28.3]} 56... Kd7 {[%clk
0:00:23.1]} 57. Kc4 {[%clk 0:00:27.2]} 57... Ke6 {[%clk 0:00:24.2]} 58. Nxb4
{[%clk 0:00:27]} 58... Kf5 {[%clk 0:00:23.2]} 59. Nd5 {[%clk 0:00:28.1]} 59...
Bd6 {[%clk 0:00:23.6]} 60. b4 {[%clk 0:00:29.6]} 60... Ke4 {[%clk 0:00:24.8]}
61. b5 {[%clk 0:00:30.3]} 61... Bb8 {[%clk 0:00:24.7]} 62. b6 {[%clk 0:00:31.3]}
62... Bd6 {[%clk 0:00:25]} 63. b7 {[%clk 0:00:32]} 63... Bb8 {[%clk 0:00:23.3]}
64. Kc5 {[%clk 0:00:33.2]} 64... Ba7+ {[%clk 0:00:20.3]} 65. Kd6 {[%clk
0:00:31.9]} 65... Kf5 {[%clk 0:00:18.8]} 66. Ne7+ {[%clk 0:00:29.7]} 66... Kxf4
{[%clk 0:00:19]} 67. Nc6 {[%clk 0:00:30.6]} 1-0